[Event "Titled Tuesday Blitz January 17 Early 2023"]
[White "Starozhilov, Leonid"]
[Black "Kravtsiv, Martyn"]
[WhiteFideId "14106752"]
[BlackFideId "14113147"]
[WhiteElo "2313"]
[BlackElo "2598"]
[Result "0-1"]
[Round "04"]
[TimeControl "180+2"]
[Date "2023.01.17"]
[WhiteClock "0:00:02"]
[BlackClock "0:00:08"]

1. e4 {[%clk 0:03:00]}  e5 {[%clk 0:02:59]} 2. Nf3 {[%clk 0:03:00]}  Nc6 {[%clk 0:02:59]} 3. Nc3 {[%clk 0:03:01]}  Nf6 {[%clk 0:02:59]} 4. Bb5 {[%clk 0:03:01]}  Bb4 {[%clk 0:02:54]} 5. Bxc6 {[%clk 0:03:01]}  dxc6 {[%clk 0:02:51]} 6. d3 {[%clk 0:03:01]}  Nd7 {[%clk 0:02:47]} 7. O-O {[%clk 0:02:57]}  O-O {[%clk 0:02:46]} 8. Bd2 {[%clk 0:02:52]}  Re8 {[%clk 0:02:40]} 9. h3 {[%clk 0:02:51]}  Nf8 {[%clk 0:02:37]} 10. Ne2 {[%clk 0:02:46]}  Bd6 {[%clk 0:02:36]} 11. Nh2 {[%clk 0:02:38]}  Ne6 {[%clk 0:02:35]} 12. Kh1 {[%clk 0:02:38]}  c5 {[%clk 0:02:34]} 13. f4 {[%clk 0:02:33]}  exf4 {[%clk 0:02:31]} 14. Nxf4 {[%clk 0:02:34]}  Nxf4 {[%clk 0:02:26]} 15. Bxf4 {[%clk 0:02:34]}  Be6 {[%clk 0:02:25]} 16. b3 {[%clk 0:02:29]}  a5 {[%clk 0:02:20]} 17. a4 {[%clk 0:02:26]}  f6 {[%clk 0:02:12]} 18. Qd2 {[%clk 0:02:22]}  Bf8 {[%clk 0:02:04]} 19. Rf2 {[%clk 0:02:11]}  Qd7 {[%clk 0:02:04]} 20. Raf1 {[%clk 0:02:09]}  c6 {[%clk 0:02:02]} 21. Qc3 {[%clk 0:01:43]}  b5 {[%clk 0:02:01]} 22. Be3 {[%clk 0:01:26]}  c4 {[%clk 0:01:56]} 23. dxc4 {[%clk 0:01:01]}  bxc4 {[%clk 0:01:56]} 24. e5 {[%clk 0:00:35]}  Bb4 {[%clk 0:01:39]} 25. Qb2 {[%clk 0:00:25]}  fxe5 {[%clk 0:01:31]} 26. Nf3 {[%clk 0:00:20]}  Bd5 {[%clk 0:01:24]} 27. Kg1 {[%clk 0:00:17]}  cxb3 {[%clk 0:01:18]} 28. cxb3 {[%clk 0:00:17]}  Bd6 {[%clk 0:01:14]} 29. Ng5 {[%clk 0:00:14]}  h6 {[%clk 0:00:59]} 30. Nf7 {[%clk 0:00:14]}  Bxf7 {[%clk 0:00:42]} 31. Rxf7 {[%clk 0:00:15]}  Qe6 {[%clk 0:00:42]} 32. Qc2 {[%clk 0:00:12]}  Bf8 {[%clk 0:00:36]} 33. Qe4 {[%clk 0:00:07]}  Rab8 {[%clk 0:00:29]} 34. Bd2 {[%clk 0:00:05]}  Qd5 {[%clk 0:00:24]} 35. Qe2 {[%clk 0:00:02]}  Qxb3 {[%clk 0:00:18]} 36. Bxh6 {[%clk 0:00:01]}  Qxf7 {[%clk 0:00:16]} 37. Rxf7 {[%clk 0:00:01]}  Kxf7 {[%clk 0:00:17]} 38. Be3 {[%clk 0:00:01]}  Re6 {[%clk 0:00:15]} 39. Kh2 {[%clk 0:00:02]}  Bd6 {[%clk 0:00:13]} 40. Qc4 {[%clk 0:00:02]}  e4+ {[%clk 0:00:12]} 41. Kg1 {[%clk 0:00:02]}  Rb1+ {[%clk 0:00:12]} 42. Kf2 {[%clk 0:00:02]}  Rb2+ {[%clk 0:00:13]} 43. Ke1 {[%clk 0:00:03]}  Bb4+ {[%clk 0:00:12]} 44. Kf1 {[%clk 0:00:03]}  Rb1+ {[%clk 0:00:09]} 45. Kf2 {[%clk 0:00:04]}  Rb2+ {[%clk 0:00:09]} 46. Kg3 {[%clk 0:00:04]}  Rb1 {[%clk 0:00:08]} 47. Kh4 {[%clk 0:00:03]}  Rd1 {[%clk 0:00:08]} 48. g4 {[%clk 0:00:03]}  Rd5 {[%clk 0:00:09]} 49. Qa6 {[%clk 0:00:02]}  Rd7 {[%clk 0:00:08]} 50. g5 {[%clk 0:00:02]}  Be7 {[%clk 0:00:08]} 51. Kg4 {[%clk 0:00:02]}  Rd3 {[%clk 0:00:07]} 52. Bf4 {[%clk 0:00:01]}  Rd5 {[%clk 0:00:07]} 53. Qc4 {[%clk 0:00:01]}  e3 {[%clk 0:00:07]} 54. h4 {[%clk 0:00:02]}  e2 {[%clk 0:00:07]} 55. Bg3 {[%clk 0:00:03]}  e1=Q {[%clk 0:00:06]} 56. Bxe1 {[%clk 0:00:03]}  Rxe1 {[%clk 0:00:06]} 57. Qf4+ {[%clk 0:00:04]}  Ke8 {[%clk 0:00:06]} 58. Qb8+ {[%clk 0:00:04]}  Rd8 {[%clk 0:00:05]} 59. Qb7 {[%clk 0:00:04]}  Re6 {[%clk 0:00:05]} 60. Qa6 {[%clk 0:00:04]}  Red6 {[%clk 0:00:06]} 61. Kh5 {[%clk 0:00:04]}  g6+ {[%clk 0:00:05]} 62. Kh6 {[%clk 0:00:04]}  Bf8+ {[%clk 0:00:05]} 63. Kh7 {[%clk 0:00:04]}  R8d7+ {[%clk 0:00:05]} 64. Kg8 {[%clk 0:00:05]}  Rd8 {[%clk 0:00:05]} 65. Qe2+ {[%clk 0:00:04]}  Be7 {[%clk 0:00:05]} 66. Kg7 {[%clk 0:00:04]}  Kd7 {[%clk 0:00:04]} 67. Qa6 {[%clk 0:00:03]}  c5 {[%clk 0:00:04]} 68. Qb7+ {[%clk 0:00:03]}  Ke6 {[%clk 0:00:04]} 69. Qe4+ {[%clk 0:00:04]}  Kd7 {[%clk 0:00:04]} 70. Qb7+ {[%clk 0:00:04]}  Ke8 {[%clk 0:00:04]} 71. Kg8 {[%clk 0:00:04]}  R8d7 {[%clk 0:00:05]} 72. Qc8+ {[%clk 0:00:04]}  Bd8 {[%clk 0:00:05]} 73. Qxc5 {[%clk 0:00:04]}  Re6 {[%clk 0:00:05]} 74. Qb5 {[%clk 0:00:03]}  Re7 {[%clk 0:00:05]} 75. h5 {[%clk 0:00:03]}  Rg7+ {[%clk 0:00:06]} 76. Kh8 {[%clk 0:00:03]}  Rh7+ {[%clk 0:00:04]} 77. Kg8 {[%clk 0:00:03]}  Rg7+ {[%clk 0:00:05]} 78. Kh8 {[%clk 0:00:03]}  gxh5 {[%clk 0:00:05]} 79. Qe5+ {[%clk 0:00:02]}  Rge7 {[%clk 0:00:06]} 80. Qf5 {[%clk 0:00:02]}  Rh7+ {[%clk 0:00:06]} 81. Qxh7 {[%clk 0:00:01]}  Rxh7+ {[%clk 0:00:07]} 82. Kxh7 {[%clk 0:00:01]}  Bxg5 {[%clk 0:00:07]} 83. Kg6 {[%clk 0:00:02]}  h4 {[%clk 0:00:08]} 0-1


[Site "https://www.chess.com"]

[Event "Titled Tuesday Blitz January 17 Early 2023"]
[White "Indjic, Aleksandar"]
[Black "Msellek, Ilyass"]
[WhiteFideId "911925"]
[BlackFideId "675938"]
[WhiteElo "2618"]
[BlackElo "2420"]
[Result "1-0"]
[Round "04"]
[TimeControl "180+2"]
[Date "2023.01.17"]
[WhiteClock "0:00:08"]
[BlackClock "0:00:02"]

1. e4 {[%clk 0:02:32]}  c6 {[%clk 0:02:59]} 2. d4 {[%clk 0:02:26]}  d5 {[%clk 0:03:00]} 3. Nc3 {[%clk 0:02:22]}  dxe4 {[%clk 0:02:59]} 4. Nxe4 {[%clk 0:02:23]}  Nf6 {[%clk 0:02:59]} 5. Nxf6+ {[%clk 0:02:22]}  exf6 {[%clk 0:03:00]} 6. c3 {[%clk 0:02:22]}  Bd6 {[%clk 0:03:01]} 7. Bd3 {[%clk 0:02:21]}  O-O {[%clk 0:03:02]} 8. Qc2 {[%clk 0:02:19]}  Re8+ {[%clk 0:03:02]} 9. Be3 {[%clk 0:02:18]}  h5 {[%clk 0:02:58]} 10. O-O-O {[%clk 0:02:17]}  Nd7 {[%clk 0:02:55]} 11. h3 {[%clk 0:02:17]}  Nf8 {[%clk 0:02:52]} 12. g4 {[%clk 0:02:17]}  hxg4 {[%clk 0:02:33]} 13. hxg4 {[%clk 0:02:16]}  g6 {[%clk 0:02:29]} 14. Ne2 {[%clk 0:02:15]}  a5 {[%clk 0:02:21]} 15. Rh4 {[%clk 0:02:12]}  f5 {[%clk 0:02:19]} 16. Rdh1 {[%clk 0:02:10]}  fxg4 {[%clk 0:02:04]} 17. Qd2 {[%clk 0:01:50]}  Qf6 {[%clk 0:02:01]} 18. Bg5 {[%clk 0:01:43]}  Qxf2 {[%clk 0:01:44]} 19. Qd1 {[%clk 0:00:53]}  f5 {[%clk 0:01:34]} 20. Qb3+ {[%clk 0:00:31]}  Be6 {[%clk 0:01:19]} 21. Rh8+ {[%clk 0:00:30]}  Kf7 {[%clk 0:00:45]} 22. Qxb7+ {[%clk 0:00:26]}  Be7 {[%clk 0:00:35]} 23. Bxe7 {[%clk 0:00:25]}  Qe3+ {[%clk 0:00:31]} 24. Kc2 {[%clk 0:00:24]}  Bb3+ {[%clk 0:00:24]} 25. Qxb3+ {[%clk 0:00:23]}  Kxe7 {[%clk 0:00:24]} 26. Qb7+ {[%clk 0:00:15]}  Kf6 {[%clk 0:00:22]} 27. Qxc6+ {[%clk 0:00:15]}  Kg5 {[%clk 0:00:21]} 28. Qc7 {[%clk 0:00:13]}  Rab8 {[%clk 0:00:16]} 29. Qg7 {[%clk 0:00:09]}  Qe6 {[%clk 0:00:03]} 30. Qh6+ {[%clk 0:00:08]}  Kf6 {[%clk 0:00:03]} 31. Nf4 {[%clk 0:00:08]}  Qxa2 {[%clk 0:00:01]} 32. Rxf8+ {[%clk 0:00:08]}  Rxf8 {[%clk 0:00:02]} 33. Qxg6+ {[%clk 0:00:09]}  Ke7 {[%clk 0:00:02]} 34. Rh7+ {[%clk 0:00:08]}  Kd8 {[%clk 0:00:02]} 35. Qd6+ {[%clk 0:00:08]}  Kc8 {[%clk 0:00:02]} 36. Qc7# {[%clk 0:00:08]} 1-0


[Site "https://www.chess.com"]

[Event "Titled Tuesday Blitz January 17 Early 2023"]
[White "Duda, Jan-Krzysztof"]
[Black "Omelja, Artem"]
[WhiteFideId "1170546"]
[BlackFideId "14119846"]
[WhiteElo "2724"]
[BlackElo "2446"]
[Result "1-0"]
[Round "04"]
[TimeControl "180+2"]
[Date "2023.01.17"]
[WhiteClock "0:00:26"]
[BlackClock "0:00:38"]

1. b3 {[%clk 0:03:00]}  e5 {[%clk 0:02:57]} 2. Bb2 {[%clk 0:03:01]}  d6 {[%clk 0:02:57]} 3. e3 {[%clk 0:03:00]}  Nf6 {[%clk 0:02:56]} 4. Nf3 {[%clk 0:02:59]}  Be7 {[%clk 0:02:52]} 5. d4 {[%clk 0:02:59]}  e4 {[%clk 0:02:52]} 6. Nfd2 {[%clk 0:02:57]}  d5 {[%clk 0:02:52]} 7. c4 {[%clk 0:02:57]}  c6 {[%clk 0:02:53]} 8. Qc1 {[%clk 0:02:52]}  O-O {[%clk 0:02:51]} 9. Ba3 {[%clk 0:02:52]}  Nbd7 {[%clk 0:02:51]} 10. Be2 {[%clk 0:02:52]}  Re8 {[%clk 0:02:48]} 11. Nc3 {[%clk 0:02:50]}  Nf8 {[%clk 0:02:48]} 12. Bxe7 {[%clk 0:02:44]}  Qxe7 {[%clk 0:02:47]} 13. cxd5 {[%clk 0:02:35]}  cxd5 {[%clk 0:02:47]} 14. Nb5 {[%clk 0:02:36]}  Be6 {[%clk 0:02:37]} 15. Qc5 {[%clk 0:02:29]}  a6 {[%clk 0:02:32]} 16. Nc7 {[%clk 0:02:27]}  Rac8 {[%clk 0:02:31]} 17. Qxe7 {[%clk 0:01:54]}  Rxe7 {[%clk 0:02:30]} 18. Nxe6 {[%clk 0:01:55]}  Nxe6 {[%clk 0:02:30]} 19. O-O {[%clk 0:01:42]}  Rec7 {[%clk 0:02:29]} 20. Rfd1 {[%clk 0:01:40]}  h6 {[%clk 0:02:25]} 21. Kf1 {[%clk 0:01:39]}  Rc2 {[%clk 0:02:21]} 22. Ke1 {[%clk 0:01:39]}  Rb2 {[%clk 0:02:20]} 23. Rdb1 {[%clk 0:01:38]}  Rxb1+ {[%clk 0:02:09]} 24. Nxb1 {[%clk 0:01:39]}  Kf8 {[%clk 0:02:03]} 25. Kd2 {[%clk 0:01:38]}  Ke7 {[%clk 0:02:03]} 26. Nc3 {[%clk 0:01:37]}  Kd6 {[%clk 0:02:02]} 27. b4 {[%clk 0:01:29]}  Nd7 {[%clk 0:01:48]} 28. Na4 {[%clk 0:01:17]}  f5 {[%clk 0:01:39]} 29. Nc5 {[%clk 0:01:10]}  Ndxc5 {[%clk 0:01:38]} 30. bxc5+ {[%clk 0:01:09]}  Kc7 {[%clk 0:01:38]} 31. Rb1 {[%clk 0:01:07]}  Nd8 {[%clk 0:01:36]} 32. Bh5 {[%clk 0:00:57]}  Nc6 {[%clk 0:01:33]} 33. h4 {[%clk 0:00:48]}  Rf8 {[%clk 0:01:30]} 34. f4 {[%clk 0:00:44]}  exf3 {[%clk 0:01:27]} 35. gxf3 {[%clk 0:00:40]}  g5 {[%clk 0:01:28]} 36. hxg5 {[%clk 0:00:36]}  hxg5 {[%clk 0:01:28]} 37. Rg1 {[%clk 0:00:37]}  Rg8 {[%clk 0:01:27]} 38. Bf7 {[%clk 0:00:36]}  Rg7 {[%clk 0:01:13]} 39. Bxd5 {[%clk 0:00:36]}  f4 {[%clk 0:01:13]} 40. Be4 {[%clk 0:00:30]}  fxe3+ {[%clk 0:00:53]} 41. Kxe3 {[%clk 0:00:31]}  Nd8 {[%clk 0:00:44]} 42. d5 {[%clk 0:00:31]}  b6 {[%clk 0:00:43]} 43. d6+ {[%clk 0:00:29]}  Kd7 {[%clk 0:00:43]} 44. cxb6 {[%clk 0:00:29]}  Kxd6 {[%clk 0:00:39]} 45. Rd1+ {[%clk 0:00:27]}  Ke7 {[%clk 0:00:38]} 46. b7 {[%clk 0:00:27]}  Nxb7 {[%clk 0:00:38]} 47. Bxb7 {[%clk 0:00:28]}  Rg6 {[%clk 0:00:37]} 48. Be4 {[%clk 0:00:26]}  Rb6 {[%clk 0:00:37]} 49. Rd5 {[%clk 0:00:26]}  Kf6 {[%clk 0:00:37]} 50. Rf5+ {[%clk 0:00:26]}  Ke6 {[%clk 0:00:37]} 51. Rxg5 {[%clk 0:00:26]}  Rb2 {[%clk 0:00:38]} 52. Rg6+ {[%clk 0:00:25]}  Ke5 {[%clk 0:00:38]} 53. f4# {[%clk 0:00:26]} 1-0


[Site "https://www.chess.com"]

[Event "Titled Tuesday Blitz January 17 Early 2023"]
[White "Carnicelli, Valerio"]
[Black "Sadhwani, Raunak"]
[WhiteFideId "856185"]
[BlackFideId "35093487"]
[WhiteElo "2370"]
[BlackElo "2627"]
[Result "0-1"]
[Round "04"]
[TimeControl "180+2"]
[Date "2023.01.17"]
[WhiteClock "0:00:10"]
[BlackClock "0:01:13"]

1. b3 {[%clk 0:03:00]}  g6 {[%clk 0:03:00]} 2. Bb2 {[%clk 0:02:59]}  Nf6 {[%clk 0:03:01]} 3. Nf3 {[%clk 0:02:59]}  Bg7 {[%clk 0:03:02]} 4. g3 {[%clk 0:02:59]}  O-O {[%clk 0:03:02]} 5. Bg2 {[%clk 0:03:00]}  d6 {[%clk 0:03:02]} 6. d4 {[%clk 0:03:00]}  b5 {[%clk 0:03:03]} 7. O-O {[%clk 0:02:59]}  Bb7 {[%clk 0:03:02]} 8. Nbd2 {[%clk 0:02:59]}  Nbd7 {[%clk 0:02:59]} 9. a4 {[%clk 0:02:58]}  b4 {[%clk 0:02:59]} 10. a5 {[%clk 0:02:51]}  Rb8 {[%clk 0:02:57]} 11. e3 {[%clk 0:02:37]}  c5 {[%clk 0:02:54]} 12. dxc5 {[%clk 0:02:33]}  Nxc5 {[%clk 0:02:55]} 13. Nc4 {[%clk 0:02:26]}  Qc7 {[%clk 0:02:52]} 14. Qe2 {[%clk 0:02:17]}  Rfc8 {[%clk 0:02:51]} 15. Rfd1 {[%clk 0:02:14]}  Ba6 {[%clk 0:02:51]} 16. Qe1 {[%clk 0:01:26]}  Nce4 {[%clk 0:02:52]} 17. Nfd2 {[%clk 0:01:23]}  Nxd2 {[%clk 0:02:44]} 18. Qxd2 {[%clk 0:01:24]}  Bxc4 {[%clk 0:02:44]} 19. bxc4 {[%clk 0:01:25]}  Qxc4 {[%clk 0:02:45]} 20. Bd4 {[%clk 0:01:20]}  Ne8 {[%clk 0:02:29]} 21. Bxa7 {[%clk 0:01:04]}  Bxa1 {[%clk 0:02:17]} 22. Rxa1 {[%clk 0:01:05]}  Ra8 {[%clk 0:02:09]} 23. Bxa8 {[%clk 0:01:04]}  Rxa8 {[%clk 0:02:10]} 24. Bd4 {[%clk 0:01:03]}  Nc7 {[%clk 0:02:08]} 25. Bb2 {[%clk 0:00:58]}  Na6 {[%clk 0:02:05]} 26. e4 {[%clk 0:00:26]}  Rc8 {[%clk 0:02:02]} 27. Rc1 {[%clk 0:00:15]}  Qxe4 {[%clk 0:01:56]} 28. Re1 {[%clk 0:00:11]}  Rxc2 {[%clk 0:01:31]} 29. Qd1 {[%clk 0:00:11]}  Qf5 {[%clk 0:01:12]} 30. g4 {[%clk 0:00:12]}  Qxf2+ {[%clk 0:01:12]} 31. Kh1 {[%clk 0:00:10]}  Qxh2# {[%clk 0:01:13]} 0-1


[Site "https://www.chess.com"]

[Event "Titled Tuesday Blitz January 17 Early 2023"]
[White "Narayanan.S.L"]
[Black "Aggelis, Nikolaos"]
[WhiteFideId "5058422"]
[BlackFideId "4213220"]
[WhiteElo "2660"]
[BlackElo "2270"]
[Result "1-0"]
[Round "04"]
[TimeControl "180+2"]
[Date "2023.01.17"]
[WhiteClock "0:01:00"]
[BlackClock "0:00:23"]

1. e4 {[%clk 0:03:00]}  c6 {[%clk 0:02:59]} 2. Nc3 {[%clk 0:02:57]}  d5 {[%clk 0:03:00]} 3. Qe2 {[%clk 0:02:58]}  dxe4 {[%clk 0:02:56]} 4. Nxe4 {[%clk 0:02:58]}  Bf5 {[%clk 0:02:54]} 5. Nf3 {[%clk 0:02:57]}  Bxe4 {[%clk 0:02:54]} 6. Qxe4 {[%clk 0:02:57]}  Nf6 {[%clk 0:02:54]} 7. Qe2 {[%clk 0:02:57]}  e6 {[%clk 0:02:55]} 8. g3 {[%clk 0:02:57]}  Nbd7 {[%clk 0:02:54]} 9. Bg2 {[%clk 0:02:58]}  Bd6 {[%clk 0:02:53]} 10. O-O {[%clk 0:02:59]}  O-O {[%clk 0:02:54]} 11. d4 {[%clk 0:02:59]}  Re8 {[%clk 0:02:52]} 12. Rd1 {[%clk 0:02:53]}  Qc7 {[%clk 0:02:52]} 13. c3 {[%clk 0:02:53]}  e5 {[%clk 0:02:49]} 14. dxe5 {[%clk 0:02:53]}  Nxe5 {[%clk 0:02:50]} 15. Nxe5 {[%clk 0:02:54]}  Bxe5 {[%clk 0:02:48]} 16. Qc2 {[%clk 0:02:55]}  Rad8 {[%clk 0:02:45]} 17. Be3 {[%clk 0:02:51]}  Ng4 {[%clk 0:02:40]} 18. Rxd8 {[%clk 0:02:49]}  Rxd8 {[%clk 0:02:39]} 19. Bd2 {[%clk 0:02:49]}  Qd6 {[%clk 0:02:34]} 20. Be1 {[%clk 0:02:48]}  Bf6 {[%clk 0:02:25]} 21. Bf3 {[%clk 0:02:40]}  Ne5 {[%clk 0:02:25]} 22. Be2 {[%clk 0:02:40]}  Nd3 {[%clk 0:02:20]} 23. Bxd3 {[%clk 0:02:29]}  Qxd3 {[%clk 0:02:20]} 24. Qxd3 {[%clk 0:02:30]}  Rxd3 {[%clk 0:02:20]} 25. Kf1 {[%clk 0:02:31]}  Kf8 {[%clk 0:02:17]} 26. Ke2 {[%clk 0:02:31]}  Rd5 {[%clk 0:02:17]} 27. a4 {[%clk 0:02:29]}  Ke7 {[%clk 0:02:14]} 28. f4 {[%clk 0:02:29]}  Kd7 {[%clk 0:02:13]} 29. Bf2 {[%clk 0:02:29]}  a6 {[%clk 0:02:11]} 30. a5 {[%clk 0:02:27]}  h5 {[%clk 0:02:10]} 31. c4 {[%clk 0:02:21]}  Rd6 {[%clk 0:02:06]} 32. Ra3 {[%clk 0:02:20]}  Kc8 {[%clk 0:01:59]} 33. b4 {[%clk 0:02:18]}  g6 {[%clk 0:01:54]} 34. Bc5 {[%clk 0:02:13]}  Re6+ {[%clk 0:01:48]} 35. Kf3 {[%clk 0:02:13]}  Be7 {[%clk 0:01:46]} 36. Bxe7 {[%clk 0:02:06]}  Rxe7 {[%clk 0:01:47]} 37. Re3 {[%clk 0:01:50]}  Kd7 {[%clk 0:01:30]} 38. Rxe7+ {[%clk 0:01:36]}  Kxe7 {[%clk 0:01:30]} 39. g4 {[%clk 0:01:36]}  Kf6 {[%clk 0:00:50]} 40. gxh5 {[%clk 0:01:30]}  gxh5 {[%clk 0:00:51]} 41. Ke4 {[%clk 0:01:30]}  Ke6 {[%clk 0:00:50]} 42. f5+ {[%clk 0:01:31]}  Kd6 {[%clk 0:00:50]} 43. c5+ {[%clk 0:01:31]}  Ke7 {[%clk 0:00:49]} 44. Kf4 {[%clk 0:01:32]}  h4 {[%clk 0:00:31]} 45. Ke5 {[%clk 0:01:00]}  h3 {[%clk 0:00:27]} 46. f6+ {[%clk 0:01:00]}  Ke8 {[%clk 0:00:24]} 47. Kf4 {[%clk 0:00:58]}  Kd7 {[%clk 0:00:22]} 48. Kf5 {[%clk 0:00:58]}  Kd8 {[%clk 0:00:20]} 49. Kg4 {[%clk 0:00:59]}  Kd7 {[%clk 0:00:21]} 50. Kxh3 {[%clk 0:01:00]}  Ke6 {[%clk 0:00:22]} 51. Kg4 {[%clk 0:01:00]}  Kxf6 {[%clk 0:00:22]} 52. h4 {[%clk 0:01:01]}  Kg6 {[%clk 0:00:18]} 53. h5+ {[%clk 0:00:54]}  Kh6 {[%clk 0:00:19]} 54. Kf5 {[%clk 0:00:55]}  Kxh5 {[%clk 0:00:20]} 55. Kf6 {[%clk 0:00:56]}  Kg4 {[%clk 0:00:19]} 56. Kxf7 {[%clk 0:00:56]}  Kf5 {[%clk 0:00:19]} 57. Ke7 {[%clk 0:00:57]}  Ke5 {[%clk 0:00:20]} 58. Kd7 {[%clk 0:00:58]}  Kd5 {[%clk 0:00:21]} 59. Kc7 {[%clk 0:00:59]}  Kc4 {[%clk 0:00:22]} 60. Kxb7 {[%clk 0:00:59]}  Kxb4 {[%clk 0:00:23]} 61. Kb6 {[%clk 0:01:00]} 1-0


[Site "https://www.chess.com"]

[Event "Titled Tuesday Blitz January 17 Early 2023"]
[White "Bortnyk, Mykola"]
[Black "Niekras, Dawid"]
[WhiteFideId "14120836"]
[BlackFideId "1160451"]
[WhiteElo "2425"]
[BlackElo "2315"]
[Result "1-0"]
[Round "04"]
[TimeControl "180+2"]
[Date "2023.01.17"]
[WhiteClock "0:01:37"]
[BlackClock "0:00:02"]

1. d4 {[%clk 0:03:00]}  Nf6 {[%clk 0:02:59]} 2. c4 {[%clk 0:03:01]}  g6 {[%clk 0:03:00]} 3. Nc3 {[%clk 0:02:58]}  Bg7 {[%clk 0:03:00]} 4. Bg5 {[%clk 0:02:58]}  O-O {[%clk 0:02:59]} 5. Qd2 {[%clk 0:02:58]}  c5 {[%clk 0:02:55]} 6. d5 {[%clk 0:02:54]}  b5 {[%clk 0:02:37]} 7. cxb5 {[%clk 0:02:53]}  a6 {[%clk 0:02:37]} 8. e4 {[%clk 0:02:41]}  d6 {[%clk 0:02:34]} 9. Nf3 {[%clk 0:02:33]}  Qa5 {[%clk 0:02:23]} 10. Bd3 {[%clk 0:02:20]}  axb5 {[%clk 0:01:49]} 11. Nxb5 {[%clk 0:02:12]}  Qb6 {[%clk 0:01:41]} 12. O-O {[%clk 0:02:07]}  Ba6 {[%clk 0:01:02]} 13. a4 {[%clk 0:02:03]}  Nbd7 {[%clk 0:00:55]} 14. Rfe1 {[%clk 0:02:00]}  Rfb8 {[%clk 0:00:48]} 15. b3 {[%clk 0:01:57]}  Kf8 {[%clk 0:00:32]} 16. Bh6 {[%clk 0:01:55]}  Ne8 {[%clk 0:00:29]} 17. Bxg7+ {[%clk 0:01:51]}  Kxg7 {[%clk 0:00:30]} 18. e5 {[%clk 0:01:50]}  Nxe5 {[%clk 0:00:18]} 19. Nxe5 {[%clk 0:01:51]}  dxe5 {[%clk 0:00:19]} 20. Rxe5 {[%clk 0:01:52]}  Bxb5 {[%clk 0:00:15]} 21. Bxb5 {[%clk 0:01:52]}  Qf6 {[%clk 0:00:08]} 22. Rae1 {[%clk 0:01:51]}  Nd6 {[%clk 0:00:08]} 23. Rxe7 {[%clk 0:01:44]}  Nxb5 {[%clk 0:00:07]} 24. axb5 {[%clk 0:01:44]}  Rxb5 {[%clk 0:00:07]} 25. d6 {[%clk 0:01:42]}  Rd8 {[%clk 0:00:04]} 26. d7 {[%clk 0:01:41]}  Rb7 {[%clk 0:00:03]} 27. Qd5 {[%clk 0:01:38]}  Rc7 {[%clk 0:00:02]} 28. h4 {[%clk 0:01:37]}  Qc6 {[%clk 0:00:02]} 29. Qxf7+ {[%clk 0:01:37]} 1-0


[Site "https://www.chess.com"]

[Event "Titled Tuesday Blitz January 17 Early 2023"]
[White "Leiva, Gianmarco"]
[Black "Dominguez Perez, Leinier"]
[WhiteFideId "3804399"]
[BlackFideId "3503240"]
[WhiteElo "2392"]
[BlackElo "2739"]
[Result "0-1"]
[Round "04"]
[TimeControl "180+2"]
[Date "2023.01.17"]
[WhiteClock "0:00:02"]
[BlackClock "0:00:03"]

1. e4 {[%clk 0:03:00]}  Nf6 {[%clk 0:03:00]} 2. e5 {[%clk 0:02:58]}  Nd5 {[%clk 0:03:00]} 3. d4 {[%clk 0:02:59]}  d6 {[%clk 0:03:00]} 4. Nf3 {[%clk 0:02:56]}  dxe5 {[%clk 0:03:00]} 5. Nxe5 {[%clk 0:02:56]}  c6 {[%clk 0:03:01]} 6. Be2 {[%clk 0:02:53]}  Bf5 {[%clk 0:03:01]} 7. O-O {[%clk 0:02:52]}  Nd7 {[%clk 0:03:01]} 8. Nf3 {[%clk 0:02:36]}  e6 {[%clk 0:03:01]} 9. c3 {[%clk 0:02:36]}  Bd6 {[%clk 0:03:00]} 10. Re1 {[%clk 0:02:33]}  O-O {[%clk 0:02:59]} 11. Nbd2 {[%clk 0:02:33]}  Nf4 {[%clk 0:02:45]} 12. Bf1 {[%clk 0:02:27]}  Nd3 {[%clk 0:02:45]} 13. Bxd3 {[%clk 0:02:26]}  Bxd3 {[%clk 0:02:45]} 14. Ne4 {[%clk 0:02:25]}  Bxe4 {[%clk 0:02:46]} 15. Rxe4 {[%clk 0:02:26]}  Qa5 {[%clk 0:02:44]} 16. Bf4 {[%clk 0:02:01]}  Bxf4 {[%clk 0:02:25]} 17. Rxf4 {[%clk 0:02:02]}  Rad8 {[%clk 0:02:25]} 18. Re4 {[%clk 0:01:51]}  h6 {[%clk 0:02:24]} 19. Qb3 {[%clk 0:01:44]}  Qc7 {[%clk 0:02:17]} 20. Ree1 {[%clk 0:01:19]}  c5 {[%clk 0:02:06]} 21. Rad1 {[%clk 0:01:20]}  cxd4 {[%clk 0:02:03]} 22. Nxd4 {[%clk 0:01:16]}  Nf6 {[%clk 0:01:53]} 23. Nf3 {[%clk 0:00:55]}  a6 {[%clk 0:01:35]} 24. h3 {[%clk 0:00:47]}  Rd5 {[%clk 0:01:13]} 25. Rxd5 {[%clk 0:00:46]}  Nxd5 {[%clk 0:01:13]} 26. Ne5 {[%clk 0:00:37]}  Rd8 {[%clk 0:01:07]} 27. Qc4 {[%clk 0:00:33]}  Qb6 {[%clk 0:00:54]} 28. Qb3 {[%clk 0:00:28]}  Qc7 {[%clk 0:00:51]} 29. Qc4 {[%clk 0:00:28]}  Qxc4 {[%clk 0:00:49]} 30. Nxc4 {[%clk 0:00:28]}  Nf4 {[%clk 0:00:47]} 31. h4 {[%clk 0:00:09]}  b5 {[%clk 0:00:46]} 32. Ne3 {[%clk 0:00:10]}  Rd2 {[%clk 0:00:45]} 33. Rb1 {[%clk 0:00:08]}  g5 {[%clk 0:00:19]} 34. hxg5 {[%clk 0:00:08]}  hxg5 {[%clk 0:00:20]} 35. Kf1 {[%clk 0:00:08]}  Nd3 {[%clk 0:00:19]} 36. Rd1 {[%clk 0:00:09]}  Rxd1+ {[%clk 0:00:07]} 37. Nxd1 {[%clk 0:00:10]}  f5 {[%clk 0:00:07]} 38. g3 {[%clk 0:00:06]}  g4 {[%clk 0:00:06]} 39. Ke2 {[%clk 0:00:06]}  Nc5 {[%clk 0:00:05]} 40. Ne3 {[%clk 0:00:03]}  Kf7 {[%clk 0:00:05]} 41. b3 {[%clk 0:00:02]}  Kf6 {[%clk 0:00:05]} 42. Nc2 {[%clk 0:00:02]}  e5 {[%clk 0:00:04]} 43. Nb4 {[%clk 0:00:02]}  Ke6 {[%clk 0:00:03]} 44. Nd3 {[%clk 0:00:02]}  Ne4 {[%clk 0:00:03]} 0-1


[Site "https://www.chess.com"]